[Event "Titled Tuesday Blitz April 11 Late 2023"]
[White "Grigorjev, Iljya"]
[Black "Filgueira, Hernan"]
[WhiteFideId "24159565"]
[BlackFideId "101770"]
[WhiteElo "2323"]
[BlackElo "2363"]
[Result "1/2-1/2"]
[Round "03"]
[TimeControl "180+2"]
[Date "2023.04.11"]
[WhiteClock "0:00:09"]
[BlackClock "0:00:39"]

1. d4 {[%clk 0:03:00]}  d5 {[%clk 0:02:59]} 2. c4 {[%clk 0:03:01]}  e6 {[%clk 0:02:58]} 3. Nf3 {[%clk 0:03:01]}  Nf6 {[%clk 0:02:58]} 4. g3 {[%clk 0:03:01]}  Bb4+ {[%clk 0:02:56]} 5. Bd2 {[%clk 0:03:01]}  Be7 {[%clk 0:02:55]} 6. Bg2 {[%clk 0:03:01]}  O-O {[%clk 0:02:56]} 7. Qc2 {[%clk 0:03:02]}  Ne4 {[%clk 0:02:54]} 8. O-O {[%clk 0:02:59]}  c6 {[%clk 0:02:52]} 9. Nc3 {[%clk 0:02:56]}  f5 {[%clk 0:02:50]} 10. Bf4 {[%clk 0:02:53]}  Nd7 {[%clk 0:02:49]} 11. Ne5 {[%clk 0:02:32]}  Qe8 {[%clk 0:02:46]} 12. f3 {[%clk 0:02:28]}  Nxc3 {[%clk 0:02:19]} 13. bxc3 {[%clk 0:02:21]}  Nxe5 {[%clk 0:02:17]} 14. Bxe5 {[%clk 0:02:22]}  Bd7 {[%clk 0:02:14]} 15. Rab1 {[%clk 0:02:15]}  b5 {[%clk 0:02:13]} 16. c5 {[%clk 0:02:04]}  Qg6 {[%clk 0:02:10]} 17. e4 {[%clk 0:01:59]}  fxe4 {[%clk 0:02:09]} 18. fxe4 {[%clk 0:01:59]}  Rxf1+ {[%clk 0:02:07]} 19. Rxf1 {[%clk 0:02:00]}  Rf8 {[%clk 0:02:06]} 20. Rxf8+ {[%clk 0:01:56]}  Bxf8 {[%clk 0:02:06]} 21. Qe2 {[%clk 0:01:56]}  Be8 {[%clk 0:01:51]} 22. h4 {[%clk 0:01:52]}  Qh5 {[%clk 0:01:43]} 23. Bf3 {[%clk 0:01:51]}  Qh6 {[%clk 0:01:41]} 24. Bf4 {[%clk 0:01:51]}  Qg6 {[%clk 0:01:37]} 25. Kh2 {[%clk 0:01:51]}  h5 {[%clk 0:01:34]} 26. Bg5 {[%clk 0:01:44]}  Bf7 {[%clk 0:01:33]} 27. Qe3 {[%clk 0:01:43]}  Qh7 {[%clk 0:01:29]} 28. Qf4 {[%clk 0:01:41]}  Bg6 {[%clk 0:01:27]} 29. exd5 {[%clk 0:01:40]}  exd5 {[%clk 0:01:26]} 30. Qc7 {[%clk 0:01:22]}  Be4 {[%clk 0:01:24]} 31. Be2 {[%clk 0:01:06]}  Qf5 {[%clk 0:01:21]} 32. Qf4 {[%clk 0:01:00]}  Qg6 {[%clk 0:01:18]} 33. Kg1 {[%clk 0:00:53]}  Bd3 {[%clk 0:01:14]} 34. Bf3 {[%clk 0:00:49]}  Bc4 {[%clk 0:01:11]} 35. a3 {[%clk 0:00:49]}  Qb1+ {[%clk 0:01:09]} 36. Kf2 {[%clk 0:00:46]}  Qc2+ {[%clk 0:01:07]} 37. Qd2 {[%clk 0:00:46]}  Qb1 {[%clk 0:00:58]} 38. Be2 {[%clk 0:00:42]}  Bxe2 {[%clk 0:00:56]} 39. Qxe2 {[%clk 0:00:43]}  Qf5+ {[%clk 0:00:56]} 40. Kg2 {[%clk 0:00:42]}  Qf7 {[%clk 0:00:54]} 41. Qf3 {[%clk 0:00:39]}  Qxf3+ {[%clk 0:00:53]} 42. Kxf3 {[%clk 0:00:40]}  Kf7 {[%clk 0:00:54]} 43. g4 {[%clk 0:00:33]}  hxg4+ {[%clk 0:00:51]} 44. Kxg4 {[%clk 0:00:34]}  g6 {[%clk 0:00:51]} 45. Kf4 {[%clk 0:00:31]}  Bg7 {[%clk 0:00:50]} 46. Kg4 {[%clk 0:00:32]}  a5 {[%clk 0:00:50]} 47. Bd8 {[%clk 0:00:28]}  b4 {[%clk 0:00:43]} 48. cxb4 {[%clk 0:00:29]}  axb4 {[%clk 0:00:43]} 49. axb4 {[%clk 0:00:30]}  Bxd4 {[%clk 0:00:43]} 50. h5 {[%clk 0:00:11]}  gxh5+ {[%clk 0:00:43]} 51. Kxh5 {[%clk 0:00:12]}  Ke8 {[%clk 0:00:43]} 52. Ba5 {[%clk 0:00:10]}  Kd7 {[%clk 0:00:43]} 53. Kg4 {[%clk 0:00:11]}  Be5 {[%clk 0:00:42]} 54. Kf3 {[%clk 0:00:11]}  Bc3 {[%clk 0:00:42]} 55. Ke2 {[%clk 0:00:11]}  Be5 {[%clk 0:00:43]} 56. Kd3 {[%clk 0:00:11]}  Bf6 {[%clk 0:00:43]} 57. Bb6 {[%clk 0:00:10]}  Be5 {[%clk 0:00:42]} 58. Ba5 {[%clk 0:00:10]}  Bf4 {[%clk 0:00:42]} 59. Bb6 {[%clk 0:00:08]}  Bg3 {[%clk 0:00:42]} 60. Kd4 {[%clk 0:00:07]}  Be1 {[%clk 0:00:41]} 61. b5 {[%clk 0:00:06]}  cxb5 {[%clk 0:00:40]} 62. Kxd5 {[%clk 0:00:06]}  Kc8 {[%clk 0:00:41]} 63. c6 {[%clk 0:00:05]}  b4 {[%clk 0:00:41]} 64. Kc4 {[%clk 0:00:06]}  Bc3 {[%clk 0:00:39]} 65. Kb3 {[%clk 0:00:06]}  Be1 {[%clk 0:00:38]} 66. Bc5 {[%clk 0:00:07]}  Kc7 {[%clk 0:00:38]} 67. Bxb4 {[%clk 0:00:08]}  Bxb4 {[%clk 0:00:38]} 68. Kxb4 {[%clk 0:00:09]}  Kxc6 {[%clk 0:00:39]} 1/2-1/2


[Site "https://www.chess.com"]

[Event "Titled Tuesday Blitz April 11 Late 2023"]
[White "Kovalev, Vladislav"]
[Black "Perske, Thore"]
[WhiteFideId "13504398"]
[BlackFideId "12902195"]
[WhiteElo "2555"]
[BlackElo "2336"]
[Result "1-0"]
[Round "03"]
[TimeControl "180+2"]
[Date "2023.04.11"]
[WhiteClock "0:00:18"]
[BlackClock "0:00:28"]

1. e4 {[%clk 0:03:00]}  e6 {[%clk 0:02:59]} 2. d4 {[%clk 0:02:59]}  d5 {[%clk 0:02:59]} 3. exd5 {[%clk 0:02:59]}  exd5 {[%clk 0:03:00]} 4. Nf3 {[%clk 0:02:59]}  Nc6 {[%clk 0:03:00]} 5. Bd3 {[%clk 0:02:55]}  Bd6 {[%clk 0:02:59]} 6. O-O {[%clk 0:02:53]}  Nge7 {[%clk 0:02:54]} 7. c3 {[%clk 0:02:44]}  Bg4 {[%clk 0:02:53]} 8. Re1 {[%clk 0:02:41]}  Qd7 {[%clk 0:02:51]} 9. b4 {[%clk 0:02:39]}  O-O {[%clk 0:02:49]} 10. h3 {[%clk 0:02:19]}  Bf5 {[%clk 0:02:47]} 11. Ne5 {[%clk 0:02:03]}  Bxe5 {[%clk 0:02:41]} 12. dxe5 {[%clk 0:02:03]}  Bxd3 {[%clk 0:02:41]} 13. Qxd3 {[%clk 0:02:04]}  Nd8 {[%clk 0:02:39]} 14. Nd2 {[%clk 0:01:49]}  c6 {[%clk 0:02:38]} 15. f4 {[%clk 0:01:46]}  Qf5 {[%clk 0:02:36]} 16. Qxf5 {[%clk 0:01:45]}  Nxf5 {[%clk 0:02:36]} 17. g4 {[%clk 0:01:45]}  Ne7 {[%clk 0:02:33]} 18. f5 {[%clk 0:01:42]}  g6 {[%clk 0:02:30]} 19. Nf3 {[%clk 0:01:13]}  gxf5 {[%clk 0:02:25]} 20. Bg5 {[%clk 0:01:14]}  Re8 {[%clk 0:02:13]} 21. Bxe7 {[%clk 0:01:13]}  Rxe7 {[%clk 0:02:13]} 22. gxf5 {[%clk 0:01:13]}  b6 {[%clk 0:01:55]} 23. Kf2 {[%clk 0:01:11]}  Kh8 {[%clk 0:01:54]} 24. Rg1 {[%clk 0:01:04]}  Nb7 {[%clk 0:01:54]} 25. f6 {[%clk 0:01:00]}  Rd7 {[%clk 0:01:41]} 26. Rg7 {[%clk 0:00:59]}  Rg8 {[%clk 0:01:41]} 27. Rag1 {[%clk 0:00:55]}  Rxg7 {[%clk 0:01:40]} 28. Rxg7 {[%clk 0:00:56]}  Nd8 {[%clk 0:01:34]} 29. Ng5 {[%clk 0:00:56]}  h6 {[%clk 0:01:22]} 30. e6 {[%clk 0:00:23]}  Rd6 {[%clk 0:00:36]} 31. e7 {[%clk 0:00:24]}  Rxf6+ {[%clk 0:00:36]} 32. Kg3 {[%clk 0:00:23]}  Kxg7 {[%clk 0:00:28]} 33. Nf3 {[%clk 0:00:18]} 1-0


[Site "https://www.chess.com"]

[Event "Titled Tuesday Blitz April 11 Late 2023"]
[White "Coenen, Michael"]
[Black "Lobanov, Sergei"]
[WhiteFideId "4697367"]
[BlackFideId "24183750"]
[WhiteElo "2328"]
[BlackElo "2489"]
[Result "0-1"]
[Round "03"]
[TimeControl "180+2"]
[Date "2023.04.11"]
[WhiteClock "0:00:08"]
[BlackClock "0:00:06"]

1. Nf3 {[%clk 0:03:00]}  d5 {[%clk 0:02:59]} 2. e3 {[%clk 0:03:00]}  Nf6 {[%clk 0:02:58]} 3. c4 {[%clk 0:03:00]}  e6 {[%clk 0:02:58]} 4. b3 {[%clk 0:03:00]}  b6 {[%clk 0:02:57]} 5. Bb2 {[%clk 0:03:00]}  Bb7 {[%clk 0:02:58]} 6. Nc3 {[%clk 0:02:59]}  Nbd7 {[%clk 0:02:58]} 7. d4 {[%clk 0:02:59]}  Bd6 {[%clk 0:02:55]} 8. Bd3 {[%clk 0:02:57]}  O-O {[%clk 0:02:55]} 9. O-O {[%clk 0:02:57]}  a6 {[%clk 0:02:56]} 10. cxd5 {[%clk 0:02:45]}  exd5 {[%clk 0:02:56]} 11. Rc1 {[%clk 0:02:40]}  Ne4 {[%clk 0:02:48]} 12. Bb1 {[%clk 0:02:32]}  Re8 {[%clk 0:02:47]} 13. Ne2 {[%clk 0:02:25]}  Qf6 {[%clk 0:02:35]} 14. Ng3 {[%clk 0:02:24]}  Re7 {[%clk 0:02:13]} 15. Nd2 {[%clk 0:02:23]}  Nxd2 {[%clk 0:01:59]} 16. Qxd2 {[%clk 0:02:22]}  g6 {[%clk 0:01:54]} 17. Rce1 {[%clk 0:02:08]}  Rae8 {[%clk 0:01:53]} 18. Qc1 {[%clk 0:02:08]}  h5 {[%clk 0:01:50]} 19. Ne2 {[%clk 0:01:42]}  Qg5 {[%clk 0:01:18]} 20. Kh1 {[%clk 0:01:38]}  Nf6 {[%clk 0:01:17]} 21. Ng1 {[%clk 0:01:35]}  Ne4 {[%clk 0:00:46]} 22. Nf3 {[%clk 0:01:30]}  Qf6 {[%clk 0:00:45]} 23. Kg1 {[%clk 0:01:25]}  h4 {[%clk 0:00:42]} 24. h3 {[%clk 0:01:22]}  Bc8 {[%clk 0:00:40]} 25. Ne5 {[%clk 0:01:15]}  c5 {[%clk 0:00:37]} 26. Bd3 {[%clk 0:01:00]}  Bxe5 {[%clk 0:00:21]} 27. dxe5 {[%clk 0:00:59]}  Qg5 {[%clk 0:00:21]} 28. Kh1 {[%clk 0:00:53]}  Qh5 {[%clk 0:00:18]} 29. Qd1 {[%clk 0:00:49]}  Qxd1 {[%clk 0:00:17]} 30. Rxd1 {[%clk 0:00:50]}  Bb7 {[%clk 0:00:16]} 31. Bxe4 {[%clk 0:00:48]}  dxe4 {[%clk 0:00:16]} 32. Rd6 {[%clk 0:00:49]}  Re6 {[%clk 0:00:17]} 33. Rfd1 {[%clk 0:00:48]}  g5 {[%clk 0:00:17]} 34. Kg1 {[%clk 0:00:48]}  Kh7 {[%clk 0:00:17]} 35. Rd7 {[%clk 0:00:47]}  R8e7 {[%clk 0:00:17]} 36. R1d6 {[%clk 0:00:46]}  b5 {[%clk 0:00:08]} 37. Kf1 {[%clk 0:00:42]}  Kg8 {[%clk 0:00:04]} 38. Ke2 {[%clk 0:00:40]}  Rxd7 {[%clk 0:00:04]} 39. Rxd7 {[%clk 0:00:39]}  Bc6 {[%clk 0:00:05]} 40. Rc7 {[%clk 0:00:38]}  b4 {[%clk 0:00:05]} 41. Kd2 {[%clk 0:00:36]}  Kf8 {[%clk 0:00:05]} 42. Kc2 {[%clk 0:00:31]}  Ke8 {[%clk 0:00:05]} 43. Ra7 {[%clk 0:00:30]}  Bb5 {[%clk 0:00:04]} 44. Ra8+ {[%clk 0:00:21]}  Kd7 {[%clk 0:00:04]} 45. Rg8 {[%clk 0:00:21]}  Rg6 {[%clk 0:00:03]} 46. Rxg6 {[%clk 0:00:19]}  fxg6 {[%clk 0:00:04]} 47. g3 {[%clk 0:00:19]}  Bf1 {[%clk 0:00:04]} 48. gxh4 {[%clk 0:00:19]}  gxh4 {[%clk 0:00:05]} 49. Kd2 {[%clk 0:00:17]}  Ke6 {[%clk 0:00:05]} 50. Ke1 {[%clk 0:00:18]}  Bxh3 {[%clk 0:00:05]} 51. a3 {[%clk 0:00:15]}  a5 {[%clk 0:00:04]} 52. axb4 {[%clk 0:00:15]}  axb4 {[%clk 0:00:05]} 53. f4 {[%clk 0:00:07]}  exf3 {[%clk 0:00:06]} 54. Kf2 {[%clk 0:00:08]}  Bg2 {[%clk 0:00:06]} 55. e4 {[%clk 0:00:07]}  g5 {[%clk 0:00:06]} 56. Bc1 {[%clk 0:00:08]}  g4 {[%clk 0:00:07]} 57. Bg5 {[%clk 0:00:07]}  g3+ {[%clk 0:00:07]} 58. Ke3 {[%clk 0:00:08]}  f2 {[%clk 0:00:06]} 0-1


[Site "https://www.chess.com"]

[Event "Titled Tuesday Blitz April 11 Late 2023"]
[White "Sarana, Alexey"]
[Black "Torres Dominguez, David"]
[WhiteFideId "24133795"]
[BlackFideId "2220857"]
[WhiteElo "2714"]
[BlackElo "1999"]
[Result "1-0"]
[Round "03"]
[TimeControl "180+2"]
[Date "2023.04.11"]
[WhiteClock "0:01:26"]
[BlackClock "0:00:31"]

1. c4 {[%clk 0:03:00]}  e5 {[%clk 0:02:59]} 2. Nf3 {[%clk 0:03:00]}  Nc6 {[%clk 0:02:58]} 3. g3 {[%clk 0:02:58]}  f5 {[%clk 0:02:58]} 4. Bg2 {[%clk 0:02:56]}  e4 {[%clk 0:02:51]} 5. Nh4 {[%clk 0:02:55]}  g6 {[%clk 0:02:51]} 6. d3 {[%clk 0:02:53]}  Nf6 {[%clk 0:02:42]} 7. dxe4 {[%clk 0:02:48]}  Nxe4 {[%clk 0:02:37]} 8. O-O {[%clk 0:02:47]}  Bg7 {[%clk 0:02:31]} 9. Nd2 {[%clk 0:02:28]}  Nf6 {[%clk 0:02:26]} 10. e4 {[%clk 0:02:25]}  fxe4 {[%clk 0:02:21]} 11. Nxe4 {[%clk 0:02:26]}  Nxe4 {[%clk 0:02:19]} 12. Bxe4 {[%clk 0:02:24]}  O-O {[%clk 0:02:17]} 13. Qd5+ {[%clk 0:01:29]}  Kh8 {[%clk 0:02:16]} 14. Bxg6 {[%clk 0:01:29]}  hxg6 {[%clk 0:02:02]} 15. Nxg6+ {[%clk 0:01:30]}  Kh7 {[%clk 0:02:02]} 16. Qh5+ {[%clk 0:01:31]}  Kg8 {[%clk 0:02:01]} 17. Bg5 {[%clk 0:01:31]}  Bf6 {[%clk 0:01:34]} 18. Bxf6 {[%clk 0:01:27]}  Qxf6 {[%clk 0:01:35]} 19. Nxf8 {[%clk 0:01:27]}  Qxf8 {[%clk 0:01:33]} 20. Rae1 {[%clk 0:01:27]}  Qf6 {[%clk 0:00:35]} 21. Re8+ {[%clk 0:01:25]}  Kg7 {[%clk 0:00:33]} 22. Qh8+ {[%clk 0:01:25]}  Kg6 {[%clk 0:00:31]} 23. Rg8+ {[%clk 0:01:26]} 1-0


[Site "https://www.chess.com"]

[Event "Titled Tuesday Blitz April 11 Late 2023"]
[White "Sadhwani, Raunak"]
[Black "Poeta, Caio Medeiros"]
[WhiteFideId "35093487"]
[BlackFideId "2142660"]
[WhiteElo "2631"]
[BlackElo "2191"]
[Result "1-0"]
[Round "03"]
[TimeControl "180+2"]
[Date "2023.04.11"]
[WhiteClock "0:02:59"]
[BlackClock "0:02:50"]

1. Nf3 {[%clk 0:03:00]}  Nf6 {[%clk 0:02:57]} 2. b3 {[%clk 0:03:01]}  b6 {[%clk 0:02:56]} 3. Bb2 {[%clk 0:03:02]}  Bb7 {[%clk 0:02:57]} 4. g3 {[%clk 0:03:00]}  e6 {[%clk 0:02:56]} 5. Bg2 {[%clk 0:03:01]}  Be7 {[%clk 0:02:56]} 6. O-O {[%clk 0:03:01]}  O-O {[%clk 0:02:57]} 7. d3 {[%clk 0:03:01]}  c5 {[%clk 0:02:55]} 8. e4 {[%clk 0:03:01]}  d5 {[%clk 0:02:55]} 9. Nbd2 {[%clk 0:03:01]}  dxe4 {[%clk 0:02:54]} 10. Ng5 {[%clk 0:03:01]}  h6 {[%clk 0:02:53]} 11. Ngxe4 {[%clk 0:03:02]}  Nxe4 {[%clk 0:02:53]} 12. Nxe4 {[%clk 0:03:03]}  Nc6 {[%clk 0:02:53]} 13. f4 {[%clk 0:03:02]}  Nd4 {[%clk 0:02:52]} 14. Kh1 {[%clk 0:02:58]}  Bf6 {[%clk 0:02:51]} 15. Nxf6+ {[%clk 0:02:58]}  Qxf6 {[%clk 0:02:50]} 16. Bxb7 {[%clk 0:02:59]} 1-0


[Site "https://www.chess.com"]

[Event "Titled Tuesday Blitz April 11 Late 2023"]
[White "Taboas Rodriguez, Daniel"]
[Black "Kramnik, Vladimir"]
[WhiteFideId "2208466"]
[BlackFideId "4101588"]
[WhiteElo "2365"]
[BlackElo "2712"]
[Result "0-1"]
[Round "03"]
[TimeControl "180+2"]
[Date "2023.04.11"]
[WhiteClock "0:00:05"]
[BlackClock "0:00:02"]

1. d4 {[%clk 0:02:59]}  Nf6 {[%clk 0:02:58]} 2. Nf3 {[%clk 0:03:00]}  e6 {[%clk 0:02:58]} 3. c4 {[%clk 0:03:00]}  Bb4+ {[%clk 0:02:57]} 4. Nbd2 {[%clk 0:03:00]}  b6 {[%clk 0:02:56]} 5. a3 {[%clk 0:03:01]}  Bxd2+ {[%clk 0:02:56]} 6. Bxd2 {[%clk 0:03:01]}  Bb7 {[%clk 0:02:55]} 7. Bg5 {[%clk 0:03:02]}  h6 {[%clk 0:02:55]} 8. Bh4 {[%clk 0:03:02]}  d6 {[%clk 0:02:53]} 9. Nd2 {[%clk 0:03:01]}  g5 {[%clk 0:02:52]} 10. Bg3 {[%clk 0:03:01]}  Nh5 {[%clk 0:02:50]} 11. f3 {[%clk 0:02:45]}  Nxg3 {[%clk 0:02:49]} 12. hxg3 {[%clk 0:02:46]}  Nd7 {[%clk 0:02:47]} 13. e4 {[%clk 0:02:46]}  Qf6 {[%clk 0:02:46]} 14. Nb3 {[%clk 0:02:46]}  h5 {[%clk 0:02:45]} 15. Bd3 {[%clk 0:02:44]}  c5 {[%clk 0:02:39]} 16. Be2 {[%clk 0:02:40]}  h4 {[%clk 0:02:37]} 17. gxh4 {[%clk 0:02:39]}  gxh4 {[%clk 0:02:37]} 18. Qd2 {[%clk 0:02:39]}  Rg8 {[%clk 0:02:34]} 19. Bf1 {[%clk 0:02:33]}  cxd4 {[%clk 0:02:29]} 20. Qxd4 {[%clk 0:02:31]}  Qg5 {[%clk 0:02:26]} 21. Qd2 {[%clk 0:02:27]}  Qg3+ {[%clk 0:02:11]} 22. Qf2 {[%clk 0:02:27]}  Qxf2+ {[%clk 0:02:08]} 23. Kxf2 {[%clk 0:02:27]}  Rh8 {[%clk 0:02:08]} 24. Be2 {[%clk 0:02:13]}  Ke7 {[%clk 0:02:08]} 25. Rh3 {[%clk 0:02:10]}  Ne5 {[%clk 0:02:08]} 26. Rah1 {[%clk 0:02:09]}  Ng6 {[%clk 0:02:08]} 27. Ke3 {[%clk 0:02:02]}  e5 {[%clk 0:02:08]} 28. Nd2 {[%clk 0:01:46]}  Nf4 {[%clk 0:02:00]} 29. R3h2 {[%clk 0:01:46]}  Rag8 {[%clk 0:01:58]} 30. Bf1 {[%clk 0:01:41]}  Ng6 {[%clk 0:01:54]} 31. Nb1 {[%clk 0:01:23]}  Bc8 {[%clk 0:01:48]} 32. Nc3 {[%clk 0:01:23]}  Be6 {[%clk 0:01:48]} 33. Kf2 {[%clk 0:01:19]}  Rh5 {[%clk 0:01:45]} 34. b3 {[%clk 0:01:09]}  Rg5 {[%clk 0:01:45]} 35. Nd1 {[%clk 0:01:06]}  f5 {[%clk 0:01:25]} 36. exf5 {[%clk 0:01:04]}  Rxf5 {[%clk 0:01:25]} 37. Bd3 {[%clk 0:01:00]}  Rg5 {[%clk 0:01:23]} 38. Bxg6 {[%clk 0:01:00]}  R5xg6 {[%clk 0:01:21]} 39. Ne3 {[%clk 0:01:01]}  h3 {[%clk 0:01:18]} 40. g4 {[%clk 0:00:39]}  e4 {[%clk 0:00:58]} 41. Rxh3 {[%clk 0:00:39]}  exf3 {[%clk 0:00:58]} 42. Rh7+ {[%clk 0:00:40]}  Kf6 {[%clk 0:00:53]} 43. R1h6 {[%clk 0:00:34]}  Rf8 {[%clk 0:00:44]} 44. Rxg6+ {[%clk 0:00:26]}  Kxg6 {[%clk 0:00:44]} 45. Rxa7 {[%clk 0:00:27]}  Kg5 {[%clk 0:00:44]} 46. Rb7 {[%clk 0:00:21]}  Kf4 {[%clk 0:00:42]} 47. Rxb6 {[%clk 0:00:20]}  Rh8 {[%clk 0:00:41]} 48. Nf1 {[%clk 0:00:20]}  Bxg4 {[%clk 0:00:37]} 49. Rxd6 {[%clk 0:00:20]}  Bf5 {[%clk 0:00:19]} 50. b4 {[%clk 0:00:17]}  Be4 {[%clk 0:00:15]} 51. Rf6+ {[%clk 0:00:16]}  Ke5 {[%clk 0:00:15]} 52. Rf7 {[%clk 0:00:15]}  Ra8 {[%clk 0:00:14]} 53. Ng3 {[%clk 0:00:13]}  Bd3 {[%clk 0:00:06]} 54. Rxf3 {[%clk 0:00:10]}  Bxc4 {[%clk 0:00:05]} 55. Ne2 {[%clk 0:00:07]}  Bd5 {[%clk 0:00:04]} 56. Re3+ {[%clk 0:00:07]}  Kd6 {[%clk 0:00:05]} 57. Nc3 {[%clk 0:00:07]}  Bc4 {[%clk 0:00:04]} 58. Ke1 {[%clk 0:00:07]}  Kc6 {[%clk 0:00:03]} 59. a4 {[%clk 0:00:06]}  Rb8 {[%clk 0:00:02]} 60. b5+ {[%clk 0:00:04]}  Kc5 {[%clk 0:00:02]} 61. Kd2 {[%clk 0:00:05]}  Kb4 {[%clk 0:00:02]} 62. Kc2 {[%clk 0:00:05]}  Bb3+ {[%clk 0:00:02]} 63. Kb2 {[%clk 0:00:05]}  Bc4 {[%clk 0:00:02]} 64. Re4 {[%clk 0:00:05]}  Rd8 {[%clk 0:00:02]} 0-1


[Site "https://www.chess.com"]

[Event "Titled Tuesday Blitz April 11 Late 2023"]
[White "Martinez Alcantara, Jose Eduardo"]
[Black "Araujo Sanchez, Josue"]
[WhiteFideId "3805662"]
[BlackFideId "6416896"]
[WhiteElo "2711"]
[BlackElo "2420"]
[Result "1-0"]
[Round "03"]
[TimeControl "180+2"]
[Date "2023.04.11"]
[WhiteClock "0:02:13"]
[BlackClock "0:01:17"]

1. e4 {[%clk 0:03:00]}  c5 {[%clk 0:02:55]} 2. Nf3 {[%clk 0:03:00]}  e6 {[%clk 0:02:52]} 3. c3 {[%clk 0:02:58]}  Nf6 {[%clk 0:02:51]} 4. Bd3 {[%clk 0:02:58]}  Nc6 {[%clk 0:02:48]} 5. Bc2 {[%clk 0:02:58]}  d5 {[%clk 0:02:34]} 6. e5 {[%clk 0:02:58]}  Nd7 {[%clk 0:02:33]} 7. d4 {[%clk 0:02:58]}  cxd4 {[%clk 0:02:22]} 8. cxd4 {[%clk 0:02:59]}  f6 {[%clk 0:02:20]} 9. exf6 {[%clk 0:02:58]}  Qxf6 {[%clk 0:02:21]} 10. O-O {[%clk 0:02:54]}  Bd6 {[%clk 0:02:19]} 11. Bg5 {[%clk 0:02:55]}  Qf7 {[%clk 0:02:18]} 12. Bh4 {[%clk 0:02:53]}  h6 {[%clk 0:02:07]} 13. Bg3 {[%clk 0:02:53]}  Bf4 {[%clk 0:01:54]} 14. Nc3 {[%clk 0:02:47]}  a6 {[%clk 0:01:48]} 15. Re1 {[%clk 0:02:45]}  Bxg3 {[%clk 0:01:39]} 16. hxg3 {[%clk 0:02:44]}  O-O {[%clk 0:01:39]} 17. Ba4 {[%clk 0:02:32]}  b5 {[%clk 0:01:19]} 18. Bc2 {[%clk 0:02:32]}  Qh5 {[%clk 0:01:20]} 19. Rxe6 {[%clk 0:02:23]}  Nb4 {[%clk 0:01:18]} 20. Bb3 {[%clk 0:02:13]}  Nf6 {[%clk 0:01:17]} 21. Re5 {[%clk 0:02:13]} 1-0


[Site "https://www.chess.com"]

[Event "Titled Tuesday Blitz April 11 Late 2023"]
[White "Indjic, Aleksandar"]
[Black "Gschnitzer, Adrian"]
[WhiteFideId "911925"]
[BlackFideId "1270337"]
[WhiteElo "2614"]
[BlackElo "2338"]
[Result "1-0"]
[Round "03"]
[TimeControl "180+2"]
[Date "2023.04.11"]
[WhiteClock "0:00:07"]
[BlackClock "0:00:04"]

1. e4 {[%clk 0:03:00]}  c5 {[%clk 0:02:57]} 2. Nc3 {[%clk 0:02:59]}  Nc6 {[%clk 0:02:58]} 3. Bb5 {[%clk 0:02:58]}  Nd4 {[%clk 0:02:56]} 4. Nf3 {[%clk 0:02:58]}  e6 {[%clk 0:02:54]} 5. Bd3 {[%clk 0:02:54]}  a6 {[%clk 0:02:44]} 6. Nxd4 {[%clk 0:02:52]}  cxd4 {[%clk 0:02:45]} 7. Ne2 {[%clk 0:02:52]}  d5 {[%clk 0:02:45]} 8. exd5 {[%clk 0:02:30]}  Qxd5 {[%clk 0:02:44]} 9. O-O {[%clk 0:02:31]}  Bd6 {[%clk 0:02:41]} 10. c4 {[%clk 0:02:29]}  Qh5 {[%clk 0:02:32]} 11. f4 {[%clk 0:02:28]}  Nf6 {[%clk 0:02:27]} 12. b4 {[%clk 0:02:27]}  e5 {[%clk 0:02:11]} 13. c5 {[%clk 0:02:17]}  Bc7 {[%clk 0:02:03]} 14. fxe5 {[%clk 0:02:09]}  Bxe5 {[%clk 0:02:04]} 15. Ng3 {[%clk 0:02:08]}  Qh4 {[%clk 0:01:52]} 16. Qe1 {[%clk 0:01:26]}  Ng4 {[%clk 0:01:49]} 17. h3 {[%clk 0:01:26]}  Qxg3 {[%clk 0:01:26]} 18. Qxg3 {[%clk 0:01:24]}  Bxg3 {[%clk 0:01:27]} 19. hxg4 {[%clk 0:01:23]}  Bxg4 {[%clk 0:01:24]} 20. Bb2 {[%clk 0:01:16]}  O-O-O {[%clk 0:01:24]} 21. Rxf7 {[%clk 0:01:10]}  Rhf8 {[%clk 0:01:13]} 22. Raf1 {[%clk 0:00:59]}  Rxf7 {[%clk 0:01:08]} 23. Rxf7 {[%clk 0:01:00]}  h5 {[%clk 0:01:03]} 24. Bf5+ {[%clk 0:00:57]}  Bxf5 {[%clk 0:00:59]} 25. Rxf5 {[%clk 0:00:58]}  g6 {[%clk 0:00:53]} 26. Rf6 {[%clk 0:00:37]}  h4 {[%clk 0:00:47]} 27. Re6 {[%clk 0:00:34]}  g5 {[%clk 0:00:43]} 28. Re4 {[%clk 0:00:33]}  d3 {[%clk 0:00:43]} 29. Bc3 {[%clk 0:00:31]}  Rf8 {[%clk 0:00:36]} 30. Bd4 {[%clk 0:00:30]}  Kc7 {[%clk 0:00:22]} 31. Be3 {[%clk 0:00:29]}  Kc6 {[%clk 0:00:18]} 32. a3 {[%clk 0:00:28]}  Kb5 {[%clk 0:00:17]} 33. Rd4 {[%clk 0:00:24]}  Re8 {[%clk 0:00:12]} 34. Rxd3 {[%clk 0:00:20]}  g4 {[%clk 0:00:12]} 35. Rd4 {[%clk 0:00:18]}  h3 {[%clk 0:00:11]} 36. Rxg4 {[%clk 0:00:18]}  h2+ {[%clk 0:00:11]} 37. Kh1 {[%clk 0:00:18]}  Bc7 {[%clk 0:00:11]} 38. g3 {[%clk 0:00:19]}  Ka4 {[%clk 0:00:09]} 39. Kxh2 {[%clk 0:00:17]}  Kxa3 {[%clk 0:00:09]} 40. Kg2 {[%clk 0:00:18]}  Kb3 {[%clk 0:00:08]} 41. Kf3 {[%clk 0:00:18]}  Rf8+ {[%clk 0:00:08]} 42. Ke2 {[%clk 0:00:18]}  Rf7 {[%clk 0:00:08]} 43. Bf2 {[%clk 0:00:19]}  Re7+ {[%clk 0:00:07]} 44. Kd3 {[%clk 0:00:19]}  Rd7+ {[%clk 0:00:08]} 45. Rd4 {[%clk 0:00:19]}  Rxd4+ {[%clk 0:00:08]} 46. Kxd4 {[%clk 0:00:18]}  Kxb4 {[%clk 0:00:08]} 47. g4 {[%clk 0:00:19]}  a5 {[%clk 0:00:08]} 48. Kd5 {[%clk 0:00:18]}  Bf4 {[%clk 0:00:06]} 49. d3 {[%clk 0:00:16]}  a4 {[%clk 0:00:04]} 50. Bd4 {[%clk 0:00:16]}  a3 {[%clk 0:00:04]} 51. Ke4 {[%clk 0:00:15]}  Bc1 {[%clk 0:00:04]} 52. Be5 {[%clk 0:00:09]}  Bb2 {[%clk 0:00:04]} 53. c6 {[%clk 0:00:07]}  bxc6 {[%clk 0:00:02]} 54. Bd6+ {[%clk 0:00:07]}  Kb3 {[%clk 0:00:02]} 55. Bxa3 {[%clk 0:00:07]}  Kxa3 {[%clk 0:00:03]} 56. d4 {[%clk 0:00:07]}  Kb3 {[%clk 0:00:03]} 57. d5 {[%clk 0:00:07]}  c5 {[%clk 0:00:03]} 58. g5 {[%clk 0:00:07]}  c4 {[%clk 0:00:03]} 59. d6 {[%clk 0:00:08]}  Ba3 {[%clk 0:00:03]} 60. d7 {[%clk 0:00:07]}  Be7 {[%clk 0:00:04]} 61. g6 {[%clk 0:00:08]}  c3 {[%clk 0:00:05]} 62. g7 {[%clk 0:00:09]}  c2 {[%clk 0:00:05]} 63. g8=Q+ {[%clk 0:00:09]}  Kb2 {[%clk 0:00:05]} 64. Qg7+ {[%clk 0:00:09]}  Kb1 {[%clk 0:00:05]} 65. Qxe7 {[%clk 0:00:09]}  c1=Q {[%clk 0:00:05]} 66. Qb4+ {[%clk 0:00:09]}  Ka1 {[%clk 0:00:05]} 67. Qd4+ {[%clk 0:00:09]}  Kb1 {[%clk 0:00:05]} 68. d8=Q {[%clk 0:00:09]}  Qc2+ {[%clk 0:00:04]} 69. Qd3 {[%clk 0:00:09]}  Kb2 {[%clk 0:00:05]} 70. Qxc2+ {[%clk 0:00:09]}  Ka1 {[%clk 0:00:04]} 71. Qdd1# {[%clk 0:00:07]} 1-0


[Site "https://www.chess.com"]